[Event "32nd Iranian Women-ch 2022"]
[Site "Kermanshah"]
[Date "2022.03.03"]
[Round "6.3"]
[White "Parvizi, Anita"]
[Black "Heydari, Maryam"]
[Result "1-0"]
[ECO "B77"]
[WhiteElo "1693"]
[BlackElo "1684"]
[Annotator "NA RC"]
[PlyCount "127"]
[EventDate "2022.02.28"]
[EventType "tourn"]
[EventCountry "IRI"]
[SourceTitle "playchess.com"]
[Source "ChessBase"]
[SourceQuality "1"]
[TimeControl "5400+30"]

1. e4 {[%emt 0:00:04]} c5 {[%emt 0:00:20]} 2. Nf3 {[%emt 0:00:07]} g6 {[%emt 0:00:06]} 3. d4 {[%emt 0:00:07]} cxd4 {[%emt 0:00:05]} 4. Nxd4 {[%emt 0:00:04]} Nc6 {[%emt 0:00:33]} 5. Nc3 {[%emt 0:00:11]} Bg7 {[%emt 0:00:27]} 6. Be3 {[%emt 0:00:06]} d6 {[%emt 0:02:20]} 7. Bc4 {[%emt 0:00:58]} Nf6 {[%emt 0:01:42]} 8. f3 {[%emt 0:00:46]} O-O {[%emt 0:00:43]} 9. Qd2 {[%emt 0:00:45]} a6 {[%emt 0:06:15]} 10. h4 {[%emt 0:01:29]} Nxd4 {[%emt 0:05:02]} 11. Bxd4 {[%emt 0:00:03]} b5 {[%emt 0:00:28]} 12. Bb3 {[%emt 0:00:20]} Be6 {[%emt 0:02:44]} 13. g4 {[%emt 0:02:07]} Bxb3 {[%emt 0:03:30]} 14. axb3 {[%emt 0:01:42]} e5 {[%emt 0:05:33]} 15. Be3 {[%emt 0:01:05]} b4 {[%emt 0:19:41]} 16. Na4 {[%emt 0:02:17]} a5 {[%emt 0:09:07]} 17. h5 {[%emt 0:03:15]} d5 {[%emt 0:01:40]} 18. Bc5 {[%emt 0:07:09]} Re8 {[%emt 0:09:21]} 19. hxg6 {[%emt 0:02:11]} fxg6 {[%emt 0:07:15]} 20. g5 {[%emt 0:00:31]} Nh5 {[%emt 0:01:02]} 21. Qxd5+ {[%emt 0:03:30]} Qxd5 {[%emt 0:02:55]} 22. exd5 {[%emt 0:00:02]} e4 {[%emt 0:01:10]} 23. Kf2 {[%emt 0:02:14]} exf3 {[%emt 0:00:27]} 24. Rhe1 {[%emt 0:04:45]} Re2+ {[%emt 0:01:16]} 25. Rxe2 {[%emt 0:02:00]} fxe2 {[%emt 0:00:07]} 26. Nb6 {[%emt 0:03:07]} Re8 {[%emt 0:08:51]} 27. d6 {[%emt 0:02:35]} Bf8 {[%emt 0:03:12]} 28. Ke1 {[%emt 0:11:13]} Nf4 {[%emt 0:00:55]} 29. d7 {[%emt 0:00:29]} Ng2+ {[%emt 0:02:02]} 30. Kd2 {[%emt 0:00:32]} Rd8 {[%emt 0:01:00]} 31. Bxf8 {[%emt 0:00:15]} Kxf8 {[%emt 0:00:11]} 32. Kxe2 {[%emt 0:00:13]} Nf4+ {[%emt 0:00:21]} 33. Kf3 {[%emt 0:00:01]} Ne6 {[%emt 0:00:18]} 34. Rxa5 {[%emt 0:00:16]} Nd4+ {[%emt 0:02:14]} 35. Ke4 {[%emt 0:01:06]} Nxc2 {[%emt 0:00:36]} 36. Kd5 {[%emt 0:02:07]} Ke7 {[%emt 0:01:43]} 37. Rc5 {[%emt 0:00:33]} Ne3+ {[%emt 0:00:35]} 38. Kc6 {[%emt 0:00:13]} Nf5 {[%emt 0:02:31]} 39. Re5+ {[%emt 0:00:02]} Kf7 {[%emt 0:00:53]} 40. Kc7 {[%emt 0:00:03]} Rxd7+ {[%emt 0:00:44]} 41. Kxd7 {[%emt 0:00:11]} Nd4 {[%emt 0:00:15]} 42. Re3 {[%emt 0:00:28]} Nf5 {[%emt 0:00:26]} 43. Rf3 {[%emt 0:00:08]} Kg7 {[%emt 0:00:11]} 44. Nd5 {[%emt 0:00:10]} Nd4 {[%emt 0:00:47]} 45. Rd3 {[%emt 0:00:24]} Nc2 {[%emt 0:00:22]} 46. Kc6 {[%emt 0:00:30]} h5 {[%emt 0:00:23]} 47. gxh6+ {[%emt 0:00:18]} Kxh6 {[%emt 0:00:08]} 48. Kb5 {[%emt 0:00:08]} g5 {[%emt 0:00:15]} 49. Nxb4 {[%emt 0:00:05]} Ne1 {[%emt 0:00:12]} 50. Rg3 {[%emt 0:00:48]} Kh5 {[%emt 0:00:13]} 51. Nd3 {[%emt 0:00:40]} Nc2 {[%emt 0:00:13]} 52. b4 {[%emt 0:00:22]} Kh4 {[%emt 0:00:18]} 53. Rg1 {[%emt 0:00:30]} g4 {[%emt 0:00:21]} 54. Kc4 {[%emt 0:00:27]} Ne3+ {[%emt 0:00:11]} 55. Kd4 {[%emt 0:00:13]} Nf5+ {[%emt 0:00:25]} 56. Ke5 {[%emt 0:00:07]} Ne3 {[%emt 0:00:16]} 57. Ke4 {[%emt 0:00:23]} Nc4 {[%emt 0:00:15]} 58. Kf4 {[%emt 0:00:15]} Kh3 {[%emt 0:00:27]} 59. Rxg4 {[%emt 0:00:17]} Nb6 {[%emt 0:00:59]} 60. Kf3 {[%emt 0:00:13]} Kh2 {[%emt 0:00:26]} 61. b5 {[%emt 0:00:21]} Nd5 {[%emt 0:00:39]} 62. Rb4 {[%emt 0:00:30]} Nxb4 {[%emt 0:00:25]} 63. Nxb4 {[%emt 0:00:05]} Kh3 {[%emt 0:00:05]} 64. b6 {[%emt 0:00:09]} 1-0

[Event "32nd Iranian Women-ch 2022"]
[Site "Kermanshah"]
[Date "2022.03.04"]
[Round "7.4"]
[White "Heydari, Maryam"]
[Black "Mahdavi, Mahdis"]
[Result "0-1"]
[ECO "A48"]
[WhiteElo "1684"]
[BlackElo "1692"]
[Annotator "NA RC"]
[PlyCount "120"]
[EventDate "2022.02.28"]
[EventType "tourn"]
[EventCountry "IRI"]
[SourceTitle "playchess.com"]
[Source "ChessBase"]
[SourceQuality "1"]
[TimeControl "5400+30"]

1. d4 {[%emt 0:00:02]} Nf6 {[%emt 0:00:36]} 2. Bf4 {[%emt 0:00:36]} g6 {[%emt 0:00:36]} 3. Nf3 {[%emt 0:00:11]} Bg7 {[%emt 0:00:08]} 4. e3 {[%emt 0:00:09]} d6 {[%emt 0:00:14]} 5. h3 {[%emt 0:00:35]} O-O {[%emt 0:00:15]} 6. Nbd2 {[%emt 0:00:53]} Nc6 {[%emt 0:01:02]} 7. c3 {[%emt 1:31:34]} h6 {[%emt 0:01:56]} 8. Bd3 {[%emt 0:00:00]} e5 {[%emt 0:03:41]} 9. Bh2 {[%emt 0:00:00]} Nd7 {[%emt 0:00:44]} 10. O-O {[%emt 0:00:00]} f5 {[%emt 0:00:48]} 11. Bc4+ {[%emt 0:00:00]} Kh7 {[%emt 0:03:34]} 12. dxe5 {[%emt 0:00:00]} Ndxe5 {[%emt 0:04:17]} 13. Nxe5 {[%emt 0:00:00]} Nxe5 {[%emt 0:00:09]} 14. Bxe5 {[%emt 0:00:00]} Bxe5 {[%emt 0:01:18]} 15. Nf3 {[%emt 0:00:00]} Bg7 {[%emt 0:00:07]} 16. Bb3 {[%emt 0:00:00]} Qf6 {[%emt 0:01:59]} 17. Qd4 {[%emt 0:00:00]} Qe7 {[%emt 0:02:00]} 18. Qd3 {[%emt 0:00:00]} Bd7 {[%emt 0:01:10]} 19. Rfe1 {[%emt 0:00:00]} Rae8 {[%emt 0:01:00]} 20. Rad1 {[%emt 0:00:00]} g5 {[%emt 0:07:06]} 21. Qd5 {[%emt 0:00:00]} Bc6 {[%emt 0:06:30]} 22. Qd3 {[%emt 0:00:00]} Be4 {[%emt 0:06:54]} 23. Qe2 {[%emt 0:00:00]} Kh8 {[%emt 0:02:03]} 24. Nd2 {[%emt 0:00:00]} Bc6 {[%emt 0:00:49]} 25. Qh5 {[%emt 0:00:00]} Qf6 {[%emt 0:02:04]} 26. Qe2 {[%emt 0:00:00]} f4 {[%emt 0:07:03]} 27. e4 {[%emt 0:00:00]} Qg6 {[%emt 0:02:39]} 28. Qd3 {[%emt 0:00:00]} h5 {[%emt 0:01:48]} 29. Bd5 {[%emt 0:00:00]} g4 {[%emt 0:06:54]} 30. Bxc6 {[%emt 0:00:00]} bxc6 {[%emt 0:00:08]} 31. hxg4 {[%emt 0:02:01]} hxg4 {[%emt 0:00:13]} 32. f3 {[%emt 0:01:28]} g3 {[%emt 0:01:17]} 33. Kf1 {[%emt 0:01:34]} Re5 {[%emt 0:06:06]} 34. Ke2 {[%emt 0:00:19]} Rh5 {[%emt 0:00:02]} 35. Rh1 {[%emt 0:00:10]} Rh2 {[%emt 0:01:16]} 36. Qb1 {[%emt 0:00:46]} d5 {[%emt 0:00:36]} 37. Kd3 {[%emt 0:01:23]} Kg8 {[%emt 0:00:44]} 38. Rdg1 {[%emt 0:00:46]} c5 {[%emt 0:03:14]} 39. Qf1 {[%emt 0:02:56]} dxe4+ {[%emt 0:00:36]} 40. Nxe4 {[%emt 0:00:23]} Qa6+ {[%emt 0:01:29]} 41. Kc2 {[%emt 0:00:20]} Qxf1 {[%emt 0:01:11]} 42. Rxf1 {[%emt 0:00:06]} Rxg2+ {[%emt 0:00:05]} 43. Kc1 {[%emt 0:00:53]} Rb8 {[%emt 0:00:25]} 44. Nd2 {[%emt 0:02:24]} Rxd2 {[%emt 0:00:17]} 45. Kxd2 {[%emt 0:00:08]} g2 {[%emt 0:00:04]} 46. Kc2 {[%emt 0:00:33]} Re8 {[%emt 0:00:57]} 47. Kd2 {[%emt 0:00:43]} Re3 {[%emt 0:00:54]} 48. Re1 {[%emt 0:01:48]} gxh1=Q {[%emt 0:01:12]} 49. Rxh1 {[%emt 0:00:04]} Rxf3 {[%emt 0:00:12]} 50. Rh5 {[%emt 0:01:24]} Rf2+ {[%emt 0:00:48]} 51. Ke1 {[%emt 0:00:23]} Rxb2 {[%emt 0:00:44]} 52. Rxc5 {[%emt 0:00:12]} Rxa2 {[%emt 0:00:16]} 53. Rxc7 {[%emt 0:00:08]} f3 {[%emt 0:00:10]} 54. c4 {[%emt 0:00:39]} f2+ {[%emt 0:00:14]} 55. Kf1 {[%emt 0:00:11]} Bd4 {[%emt 0:00:05]} 56. Rc8+ {[%emt 0:00:51]} Kf7 {[%emt 0:00:06]} 57. Rc7+ {[%emt 0:00:05]} Ke6 {[%emt 0:00:04]} 58. Rc6+ {[%emt 0:00:15]} Kd7 {[%emt 0:00:09]} 59. Rg6 {[%emt 0:00:47]} Ra1+ {[%emt 0:00:12]} 60. Ke2 {[%emt 0:00:22]} f1=Q+ {[%emt 0:27:20]} 0-1

[Event "32nd Iranian Women-ch 2022"]
[Site "Kermanshah"]
[Date "2022.03.05"]
[Round "9.1"]
[White "Azali, Tannaz"]
[Black "Asgharzadeh, Mitra"]
[Result "1/2-1/2"]
[ECO "E71"]
[WhiteElo "2100"]
[BlackElo "1950"]
[Annotator "NA"]
[PlyCount "168"]
[EventDate "2022.02.28"]
[EventType "tourn"]
[EventCountry "IRI"]
[SourceTitle "playchess.com"]
[Source "ChessBase"]
[SourceQuality "1"]
[TimeControl "5400+30"]

1. d4 {[%emt 0:00:02]} Nf6 {[%emt 0:07:21]} 2. c4 {[%emt 0:00:06]} g6 {[%emt 0:00:06]} 3. Nc3 {[%emt 0:00:22]} Bg7 {[%emt 0:00:02]} 4. e4 {[%emt 0:00:18]} d6 {[%emt 0:00:00]} 5. h3 {[%emt 0:00:39]} O-O {[%emt 0:00:41]} 6. Be3 {[%emt 0:00:17]} Nc6 {[%emt 0:04:42]} 7. Nge2 {[%emt 0:02:00]} a6 {[%emt 0:06:18]} 8. d5 {[%emt 0:10:53]} Ne5 {[%emt 0:04:34]} 9. Nd4 {[%emt 0:05:26]} c5 {[%emt 0:00:53]} 10. dxc6 {[%emt 0:00:59]} Nxc6 {[%emt 0:00:12]} 11. Qd2 {[%emt 0:05:59]} Nxd4 {[%emt 0:02:56]} 12. Bxd4 {[%emt 0:00:02]} Be6 {[%emt 0:00:10]} 13. b3 {[%emt 0:11:39]} Qa5 {[%emt 0:01:22]} 14. Rd1 {[%emt 0:02:47]} Rfc8 {[%emt 0:03:35]} 15. Nd5 {[%emt 0:08:01]} Qxd2+ {[%emt 0:01:53]} 16. Rxd2 {[%emt 0:00:04]} Bxd5 {[%emt 0:05:04]} 17. exd5 {[%emt 0:01:12]} Nd7 {[%emt 0:02:55]} 18. Be2 {[%emt 0:02:38]} Bxd4 {[%emt 0:27:19]} 19. Rxd4 {[%emt 0:00:01]} a5 {[%emt 0:00:31]} 20. a4 {[%emt 0:11:26]} Nc5 {[%emt 0:01:27]} 21. Bd1 {[%emt 0:00:01]} Ra6 {[%emt 0:00:16]} 22. Kd2 {[%emt 0:07:29]} Rb6 {[%emt 0:01:13]} 23. Kc3 {[%emt 0:00:09]} e5 {[%emt 0:07:44]} 24. dxe6 {[%emt 0:01:39]} fxe6 {[%emt 0:04:10]} 25. Bc2 {[%emt 0:01:11]} d5 {[%emt 0:04:10]} 26. h4 {[%emt 0:08:17]} Rb4 {[%emt 0:01:18]} 27. Ra1 {[%emt 0:04:09]} Nd7 {[%emt 0:05:53]} 28. Re1 {[%emt 0:02:43]} Rc6 {[%emt 0:01:27]} 29. Re3 {[%emt 0:05:01]} Nb6 {[%emt 0:01:37]} 30. Bd3 {[%emt 0:00:16]} dxc4 {[%emt 0:01:00]} 31. Rd8+ {[%emt 0:00:20]} Kg7 {[%emt 0:00:18]} 32. Bxc4 {[%emt 0:00:11]} Nd5+ {[%emt 0:02:35]} 33. Kd4 {[%emt 0:00:28]} Nxe3 {[%emt 0:00:21]} 34. Kxe3 {[%emt 0:01:19]} Rc7 {[%emt 0:00:57]} 35. Rd6 {[%emt 0:02:13]} Rcxc4 {[%emt 0:01:53]} 36. bxc4 {[%emt 0:00:07]} Kf6 {[%emt 0:00:43]} 37. Rd7 {[%emt 0:01:50]} Rxc4 {[%emt 0:00:44]} 38. Rxh7 {[%emt 0:00:15]} b6 {[%emt 0:00:25]} 39. Rb7 {[%emt 0:00:28]} Rxh4 {[%emt 0:00:13]} 40. Rxb6 {[%emt 0:00:06]} Rxa4 {[%emt 0:00:04]} 41. Ra6 {[%emt 0:01:27]} g5 {[%emt 0:01:08]} 42. Kf3 {[%emt 0:00:28]} Ra1 {[%emt 0:00:19]} 43. Kg4 {[%emt 0:00:20]} Ra2 {[%emt 0:00:20]} 44. g3 {[%emt 0:02:37]} a4 {[%emt 0:00:34]} 45. Ra5 {[%emt 0:00:10]} Rxf2 {[%emt 0:00:55]} 46. Rxa4 {[%emt 0:00:05]} Rf5 {[%emt 0:00:27]} 47. Ra8 {[%emt 0:00:30]} Rb5 {[%emt 0:00:32]} 48. Rf8+ {[%emt 0:00:10]} Kg7 {[%emt 0:00:07]} 49. Ra8 {[%emt 0:00:35]} Rc5 {[%emt 0:00:03]} 50. Rb8 {[%emt 0:00:21]} Ra5 {[%emt 0:00:01]} 51. Rc8 {[%emt 0:00:21]} Kf7 {[%emt 0:00:59]} 52. Rb8 {[%emt 0:00:07]} Ra3 {[%emt 0:00:31]} 53. Kxg5 {[%emt 0:00:22]} Rxg3+ {[%emt 0:00:03]} 54. Kf4 {[%emt 0:00:07]} Ra3 {[%emt 0:00:14]} 55. Ke4 {[%emt 0:00:34]} Ra1 {[%emt 0:00:36]} 56. Rb3 {[%emt 0:00:55]} Kf6 {[%emt 0:00:10]} 57. Ke3 {[%emt 0:00:35]} Kf5 {[%emt 0:00:13]} 58. Ke2 {[%emt 0:00:30]} Ra2+ {[%emt 0:00:12]} 59. Ke1 {[%emt 0:00:10]} e5 {[%emt 0:00:11]} 60. Rc3 {[%emt 0:00:37]} Kf4 {[%emt 0:00:12]} 61. Rb3 {[%emt 0:00:24]} e4 {[%emt 0:00:51]} 62. Rc3 {[%emt 0:00:09]} Ra1+ {[%emt 0:02:16]} 63. Ke2 {[%emt 0:00:10]} Ra2+ {[%emt 0:00:23]} 64. Ke1 {[%emt 0:00:04]} Ke5 {[%emt 0:00:19]} 65. Rb3 {[%emt 0:00:15]} Kd4 {[%emt 0:00:34]} 66. Rh3 {[%emt 0:00:13]} Ra5 {[%emt 0:01:16]} 67. Rg3 {[%emt 0:00:26]} Rc5 {[%emt 0:00:35]} 68. Rh3 {[%emt 0:00:51]} Rc1+ {[%emt 0:00:17]} 69. Ke2 {[%emt 0:00:05]} Rc2+ {[%emt 0:00:08]} 70. Ke1 {[%emt 0:00:04]} Rc7 {[%emt 0:00:59]} 71. Rg3 {[%emt 0:00:17]} Ke5 {[%emt 0:00:14]} 72. Ra3 {[%emt 0:00:24]} Kf4 {[%emt 0:00:12]} 73. Rb3 {[%emt 0:00:11]} Rd7 {[%emt 0:00:28]} 74. Ra3 {[%emt 0:00:15]} Rb7 {[%emt 0:01:05]} 75. Rc3 {[%emt 0:00:05]} Rg7 {[%emt 0:00:31]} 76. Ra3 {[%emt 0:00:11]} Rh7 {[%emt 0:00:36]} 77. Rb3 {[%emt 0:00:06]} Rg7 {[%emt 0:00:10]} 78. Ra3 {[%emt 0:00:05]} Rb7 {[%emt 0:00:40]} 79. Rc3 {[%emt 0:00:07]} Rg7 {[%emt 0:00:34]} 80. Ra3 {[%emt 0:00:07]} e3 {[%emt 0:00:18]} 81. Ra8 {[%emt 0:00:16]} Re7 {[%emt 0:00:27]} 82. Ke2 {[%emt 0:00:32]} Re5 {[%emt 0:00:35]} 83. Ra3 {[%emt 0:00:40]} Rb5 {[%emt 0:00:17]} 84. Ra4+ {[%emt 0:00:09]} Ke5 {[%emt 0:01:56]} 1/2-1/2

[Event "32nd Iranian Women-ch 2022"]
[Site "Kermanshah"]
[Date "2022.03.05"]
[Round "9.2"]
[White "Mahdian, Anousha"]
[Black "Masoumi, Sahar"]
[Result "1/2-1/2"]
[ECO "D35"]
[WhiteElo "2179"]
[BlackElo "1925"]
[Annotator "NA"]
[PlyCount "51"]
[EventDate "2022.02.28"]
[EventType "tourn"]
[EventCountry "IRI"]
[SourceTitle "playchess.com"]
[Source "ChessBase"]
[SourceQuality "1"]
[TimeControl "5400+30"]

1. d4 {[%emt 0:01:36]} d5 {[%emt 0:00:07]} 2. c4 {[%emt 0:00:09]} e6 {[%emt 0:00:06]} 3. Nc3 {[%emt 0:00:04]} Bb4 {[%emt 0:00:11]} 4. cxd5 {[%emt 0:00:03]} exd5 {[%emt 0:00:08]} 5. Bf4 {[%emt 0:00:06]} c5 {[%emt 0:00:14]} 6. dxc5 {[%emt 0:02:49]} Nf6 {[%emt 0:00:15]} 7. e3 {[%emt 0:00:04]} O-O {[%emt 0:00:24]} 8. Bd3 {[%emt 0:00:26]} Nc6 {[%emt 0:00:27]} 9. Nge2 {[%emt 0:00:04]} Bxc5 {[%emt 0:00:18]} 10. O-O {[%emt 0:00:08]} d4 {[%emt 0:01:17]} 11. exd4 {[%emt 0:04:29]} Nxd4 {[%emt 0:00:15]} 12. Na4 {[%emt 0:00:29]} Nxe2+ {[%emt 0:03:30]} 13. Bxe2 {[%emt 0:00:51]} Be7 {[%emt 0:06:51]} 14. Bf3 {[%emt 0:11:37]} Qa5 {[%emt 0:02:46]} 15. Nc3 {[%emt 0:03:41]} Qb4 {[%emt 0:07:41]} 16. Qc1 {[%emt 0:09:47]} Be6 {[%emt 0:02:20]} 17. a3 {[%emt 0:04:19]} Qb3 {[%emt 0:01:27]} 18. Bd1 {[%emt 0:00:29]} Qc4 {[%emt 0:01:07]} 19. Be2 {[%emt 0:00:17]} Qb3 {[%emt 0:03:12]} 20. Bd1 {[%emt 0:00:17]} Qc4 {[%emt 0:03:45]} 21. Be2 {[%emt 0:02:10]} Qb3 {[%emt 0:03:18]} 22. Bd1 {[%emt 0:00:10]} Qc4 {[%emt 0:21:35]} 23. Be2 {[%emt 0:00:12]} Qc6 24. Bf3 Qb6 25. Be3 Qc7 26. Nb5 1/2-1/2

[Event "32nd Iranian Women-ch 2022"]
[Site "Kermanshah"]
[Date "2022.03.05"]
[Round "9.3"]
[White "Heydari, Maryam"]
[Black "Zahedifar, Anahita"]
[Result "0-1"]
[ECO "B18"]
[WhiteElo "1684"]
[BlackElo "2213"]
[Annotator "NA"]
[PlyCount "98"]
[EventDate "2022.02.28"]
[EventType "tourn"]
[EventCountry "IRI"]
[SourceTitle "playchess.com"]
[Source "ChessBase"]
[SourceQuality "1"]
[TimeControl "5400+30"]

1. e4 {[%emt 0:00:02]} c6 {[%emt 0:06:08]} 2. Nc3 {[%emt 0:01:08]} d5 {[%emt 0:00:12]} 3. d4 {[%emt 0:00:36]} dxe4 {[%emt 0:00:33]} 4. Nxe4 {[%emt 0:00:10]} Bf5 {[%emt 0:00:27]} 5. Ng3 {[%emt 0:00:11]} Bg6 {[%emt 0:00:15]} 6. Nf3 {[%emt 0:00:17]} Nd7 {[%emt 0:00:16]} 7. Nh4 {[%emt 0:01:32]} e6 {[%emt 0:03:01]} 8. Nxg6 {[%emt 0:00:16]} hxg6 {[%emt 0:00:02]} 9. Bd3 {[%emt 0:00:53]} Qc7 {[%emt 0:00:45]} 10. c3 {[%emt 0:02:02]} Ngf6 {[%emt 0:00:41]} 11. Qf3 {[%emt 0:04:41]} Bd6 {[%emt 0:04:41]} 12. Be3 {[%emt 0:04:15]} O-O-O {[%emt 0:04:12]} 13. O-O-O {[%emt 0:00:17]} Qa5 {[%emt 0:07:15]} 14. Kb1 {[%emt 0:06:12]} Nb6 {[%emt 0:02:41]} 15. Ne4 {[%emt 0:00:23]} Nxe4 {[%emt 0:02:27]} 16. Bxe4 {[%emt 0:00:41]} Rd7 {[%emt 0:02:14]} 17. Bf4 {[%emt 0:00:25]} Bxf4 {[%emt 0:01:41]} 18. Qxf4 {[%emt 0:00:08]} Rhd8 {[%emt 0:01:30]} 19. Bf3 {[%emt 0:05:01]} Qb5 {[%emt 0:04:11]} 20. Rhe1 {[%emt 0:10:04]} Nc4 {[%emt 0:06:34]} 21. Qc1 {[%emt 0:00:09]} Qb6 {[%emt 0:09:11]} 22. Be2 {[%emt 0:01:18]} Nd6 {[%emt 0:00:55]} 23. Qf4 {[%emt 0:00:58]} Ne8 {[%emt 0:05:06]} 24. Bf3 {[%emt 0:01:24]} Nc7 {[%emt 0:01:52]} 25. h3 {[%emt 0:04:19]} a5 {[%emt 0:01:57]} 26. Qe5 {[%emt 0:01:44]} f6 {[%emt 0:00:54]} 27. Qc5 {[%emt 0:01:17]} Qxc5 {[%emt 0:01:24]} 28. dxc5 {[%emt 0:00:10]} Rxd1+ {[%emt 0:01:51]} 29. Rxd1 {[%emt 0:00:28]} Na6 {[%emt 0:02:38]} 30. Rxd8+ {[%emt 0:01:33]} Kxd8 {[%emt 0:00:02]} 31. Kc2 {[%emt 0:00:54]} Kc7 {[%emt 0:01:23]} 32. a3 {[%emt 0:00:42]} Nxc5 {[%emt 0:00:07]} 33. b4 {[%emt 0:00:07]} axb4 {[%emt 0:00:03]} 34. axb4 {[%emt 0:00:49]} Nd7 {[%emt 0:00:10]} 35. c4 {[%emt 0:00:53]} b6 {[%emt 0:00:43]} 36. Kc3 {[%emt 0:01:21]} g5 {[%emt 0:01:45]} 37. Be2 {[%emt 0:01:28]} Kd6 {[%emt 0:00:32]} 38. g3 {[%emt 0:02:07]} Ne5 {[%emt 0:06:07]} 39. Bd1 {[%emt 0:02:13]} c5 {[%emt 0:01:17]} 40. b5 {[%emt 0:00:35]} f5 {[%emt 0:03:11]} 41. g4 {[%emt 0:05:14]} Ng6 {[%emt 0:00:50]} 42. Be2 {[%emt 0:04:10]} Ke5 {[%emt 0:03:11]} 43. Bf1 {[%emt 0:04:25]} Nf4 {[%emt 0:00:28]} 44. f3 {[%emt 0:02:08]} g6 {[%emt 0:00:20]} 45. Kc2 {[%emt 0:02:36]} Kd4 {[%emt 0:00:24]} 46. Kd2 {[%emt 0:00:09]} e5 {[%emt 0:00:04]} 47. gxf5 {[%emt 0:04:22]} gxf5 {[%emt 0:00:15]} 48. Be2 {[%emt 0:00:28]} Nxe2 {[%emt 0:00:08]} 49. Kxe2 {[%emt 0:00:05]} Kxc4 {[%emt 0:00:04]} 0-1

[Event "32nd Iranian Women-ch 2022"]
[Site "Kermanshah"]
[Date "2022.03.05"]
[Round "9.4"]
[White "Asadi, Motahare"]
[Black "Paktinat, Zhina"]
[Result "1-0"]
[ECO "B25"]
[WhiteElo "2093"]
[BlackElo "1903"]
[Annotator "NA"]
[PlyCount "93"]
[EventDate "2022.02.28"]
[EventType "tourn"]
[EventCountry "IRI"]
[SourceTitle "playchess.com"]
[Source "ChessBase"]
[SourceQuality "1"]
[TimeControl "5400+30"]

1. e4 {[%emt 0:08:00]} c5 {[%emt 0:00:16]} 2. Nf3 {[%emt 0:00:11]} Nc6 {[%emt 0:00:09]} 3. g3 {[%emt 0:01:53]} g6 {[%emt 0:02:38]} 4. Bg2 {[%emt 0:00:28]} Bg7 {[%emt 0:00:05]} 5. Nc3 {[%emt 0:00:24]} d6 {[%emt 0:02:02]} 6. d3 {[%emt 0:00:10]} e5 {[%emt 0:06:02]} 7. O-O {[%emt 0:00:56]} Nge7 {[%emt 0:00:44]} 8. h4 {[%emt 0:20:05]} h6 {[%emt 0:04:48]} 9. Nh2 {[%emt 0:02:27]} Be6 {[%emt 0:01:34]} 10. Be3 {[%emt 0:03:30]} Qd7 {[%emt 0:11:34]} 11. Qd2 {[%emt 0:02:23]} Bh3 {[%emt 0:10:12]} 12. Ne2 {[%emt 0:07:18]} Bxg2 {[%emt 0:04:16]} 13. Kxg2 {[%emt 0:00:04]} O-O-O {[%emt 0:05:47]} 14. c3 {[%emt 0:08:14]} g5 {[%emt 0:04:45]} 15. h5 {[%emt 0:00:57]} d5 {[%emt 0:03:05]} 16. Qc2 {[%emt 0:09:05]} d4 {[%emt 0:07:56]} 17. cxd4 {[%emt 0:00:07]} cxd4 {[%emt 0:00:04]} 18. Bd2 {[%emt 0:00:09]} f5 {[%emt 0:00:15]} 19. f3 {[%emt 0:01:06]} g4 {[%emt 0:00:36]} 20. Ng1 {[%emt 0:08:46]} gxf3+ {[%emt 0:01:58]} 21. Ngxf3 {[%emt 0:00:07]} fxe4 {[%emt 0:02:22]} 22. dxe4 {[%emt 0:00:07]} Kb8 {[%emt 0:01:08]} 23. Qd3 {[%emt 0:01:47]} Qe8 {[%emt 0:04:44]} 24. g4 {[%emt 0:00:52]} Bf6 {[%emt 0:00:46]} 25. b4 {[%emt 0:00:54]} Rc8 {[%emt 0:01:04]} 26. b5 {[%emt 0:03:33]} Nd8 {[%emt 0:00:10]} 27. Nxd4 {[%emt 0:00:21]} exd4 {[%emt 0:02:00]} 28. Rxf6 {[%emt 0:00:07]} Ng8 {[%emt 0:00:33]} 29. Rd6 {[%emt 0:03:35]} Ne6 {[%emt 0:01:48]} 30. e5 {[%emt 0:01:23]} Rc3 {[%emt 0:08:15]} 31. Rxe6 {[%emt 0:04:18]} Qxe6 {[%emt 0:00:49]} 32. Bxc3 {[%emt 0:00:05]} dxc3 {[%emt 0:00:15]} 33. Qd8+ {[%emt 0:00:11]} Qc8 {[%emt 0:00:07]} 34. Qxc8+ {[%emt 0:02:18]} Kxc8 {[%emt 0:00:04]} 35. Rc1 {[%emt 0:00:06]} Kd7 {[%emt 0:00:22]} 36. Rxc3 {[%emt 0:00:05]} Ne7 {[%emt 0:00:04]} 37. Ra3 {[%emt 0:01:53]} Ra8 {[%emt 0:01:12]} 38. Kf3 {[%emt 0:00:31]} Ke6 {[%emt 0:03:40]} 39. Ke4 {[%emt 0:00:16]} Rg8 {[%emt 0:01:02]} 40. Rd3 {[%emt 0:00:56]} Nc8 {[%emt 0:00:34]} 41. Rf3 {[%emt 0:00:07]} Nb6 {[%emt 0:01:27]} 42. Rf6+ {[%emt 0:00:06]} Ke7 {[%emt 0:00:04]} 43. Rxh6 {[%emt 0:00:11]} Na4 {[%emt 0:00:04]} 44. Rh7+ {[%emt 0:01:21]} Ke6 {[%emt 0:00:09]} 45. Rh6+ {[%emt 0:01:42]} Ke7 {[%emt 0:00:05]} 46. Kf5 {[%emt 0:00:03]} Rf8+ {[%emt 0:00:24]} 47. Rf6 {[%emt 0:00:09]} 1-0

[Event "32nd Iranian Women-ch 2022"]
[Site "Kermanshah"]
[Date "2022.03.05"]
[Round "9.5"]
[White "Ghomi, Parnian"]
[Black "Mahdavi, Mahdis"]
[Result "1/2-1/2"]
[ECO "B22"]
[WhiteElo "2026"]
[BlackElo "1692"]
[Annotator "NA"]
[PlyCount "67"]
[EventDate "2022.02.28"]
[EventType "tourn"]
[EventCountry "IRI"]
[SourceTitle "playchess.com"]
[Source "ChessBase"]
[SourceQuality "1"]
[TimeControl "5400+30"]

1. e4 {[%emt 1:31:00]} c5 {[%emt 0:00:59]} 2. Nf3 {[%emt 0:00:00]} e6 {[%emt 0:00:44]} 3. c3 {[%emt 0:00:00]} Nf6 {[%emt 0:00:12]} 4. e5 {[%emt 0:00:00]} Nd5 {[%emt 0:00:12]} 5. d4 {[%emt 0:00:00]} cxd4 {[%emt 0:00:14]} 6. cxd4 {[%emt 0:00:00]} d6 {[%emt 0:01:00]} 7. Nc3 {[%emt 0:00:00]} Nc6 {[%emt 0:04:36]} 8. Bd3 {[%emt 0:00:00]} dxe5 {[%emt 0:04:22]} 9. dxe5 {[%emt 0:00:00]} Nxc3 {[%emt 0:02:20]} 10. bxc3 {[%emt 0:00:00]} Qa5 {[%emt 0:03:50]} 11. Qb3 {[%emt 0:00:00]} Nxe5 {[%emt 0:06:50]} 12. Nxe5 {[%emt 0:00:00]} Qxe5+ {[%emt 0:00:09]} 13. Be3 {[%emt 0:00:00]} Bd7 {[%emt 0:00:42]} 14. O-O {[%emt 0:00:00]} Bd6 {[%emt 0:03:10]} 15. g3 {[%emt 0:00:00]} Bc6 {[%emt 0:00:32]} 16. Rad1 {[%emt 0:00:00]} O-O {[%emt 0:05:54]} 17. Rfe1 {[%emt 0:00:00]} Qf6 {[%emt 0:09:05]} 18. Bxh7+ {[%emt 0:00:00]} Kxh7 {[%emt 0:01:13]} 19. Rxd6 {[%emt 0:00:00]} Qf3 {[%emt 0:00:31]} 20. Kf1 {[%emt 0:00:00]} Rfd8 {[%emt 0:03:18]} 21. Qb4 {[%emt 0:00:00]} Kg8 {[%emt 0:06:28]} 22. Qf4 {[%emt 0:00:00]} Rxd6 {[%emt 0:06:19]} 23. Qxd6 {[%emt 0:00:00]} Qg2+ {[%emt 0:01:12]} 24. Ke2 {[%emt 0:00:00]} Qxh2 {[%emt 0:00:45]} 25. Bd4 {[%emt 0:01:32]} Qh5+ {[%emt 0:01:02]} 26. Kd2 {[%emt 0:00:15]} Qa5 {[%emt 0:08:48]} 27. a3 {[%emt 0:01:24]} Bd5 {[%emt 0:05:56]} 28. Qe5 {[%emt 0:01:43]} f6 {[%emt 0:00:33]} 29. Qd6 {[%emt 0:01:19]} e5 {[%emt 0:01:45]} 30. Rxe5 {[%emt 0:00:12]} Rd8 {[%emt 0:00:56]} 31. Qe6+ {[%emt 0:00:02]} Bxe6 {[%emt 0:02:28]} 32. Rxa5 {[%emt 0:00:01]} a6 {[%emt 0:00:17]} 33. Rc5 {[%emt 0:00:09]} Rc8 {[%emt 0:00:22]} 34. Rh5 {[%emt 0:00:42]} 1/2-1/2